[Event "Titled Tuesday Blitz June 15 2021"]
[White "Quparadze, Giga"]
[Black "Dowgird, Filip"]
[WhiteFideId "13602250"]
[BlackFideId "1121235"]
[WhiteElo "2658"]
[BlackElo "2209"]
[Result "1-0"]
[Round "02"]
[TimeControl "180+1"]
[Date "2021.06.15"]
[WhiteClock "0:01:55"]
[BlackClock "0:00:40"]

1. e4 {[%clk 0:03:00]}  d6 {[%clk 0:02:59]} 2. d4 {[%clk 0:03:00]}  Nf6 {[%clk 0:02:59]} 3. Nc3 {[%clk 0:03:00]}  c6 {[%clk 0:02:58]} 4. a4 {[%clk 0:02:59]}  Nbd7 {[%clk 0:02:58]} 5. a5 {[%clk 0:02:58]}  e5 {[%clk 0:02:58]} 6. Nf3 {[%clk 0:02:58]}  Be7 {[%clk 0:02:58]} 7. Bc4 {[%clk 0:02:58]}  O-O {[%clk 0:02:58]} 8. O-O {[%clk 0:02:58]}  Rb8 {[%clk 0:02:58]} 9. Re1 {[%clk 0:02:57]}  b5 {[%clk 0:02:57]} 10. axb6 {[%clk 0:02:57]}  axb6 {[%clk 0:02:58]} 11. b4 {[%clk 0:02:57]}  b5 {[%clk 0:02:57]} 12. Bb3 {[%clk 0:02:57]}  Qc7 {[%clk 0:02:52]} 13. Bb2 {[%clk 0:02:57]}  Nb6 {[%clk 0:02:46]} 14. h3 {[%clk 0:02:54]}  g6 {[%clk 0:02:36]} 15. Qd2 {[%clk 0:02:52]}  Nh5 {[%clk 0:02:33]} 16. dxe5 {[%clk 0:02:37]}  dxe5 {[%clk 0:02:32]} 17. Nxb5 {[%clk 0:02:37]}  cxb5 {[%clk 0:02:29]} 18. Bxe5 {[%clk 0:02:36]}  Qb7 {[%clk 0:02:18]} 19. Qh6 {[%clk 0:02:35]}  Bf6 {[%clk 0:02:16]} 20. Bxf6 {[%clk 0:02:33]}  Nxf6 {[%clk 0:02:14]} 21. Ng5 {[%clk 0:02:33]}  Nbd7 {[%clk 0:01:30]} 22. e5 {[%clk 0:02:32]}  Ra8 {[%clk 0:01:12]} 23. Rxa8 {[%clk 0:02:28]}  Qxa8 {[%clk 0:01:12]} 24. exf6 {[%clk 0:02:25]}  Nxf6 {[%clk 0:01:12]} 25. Qh4 {[%clk 0:02:14]}  Qc6 {[%clk 0:01:08]} 26. Re7 {[%clk 0:02:11]}  Bb7 {[%clk 0:01:00]} 27. Qg3 {[%clk 0:02:05]}  Nh5 {[%clk 0:00:54]} 28. Bxf7+ {[%clk 0:01:59]}  Rxf7 {[%clk 0:00:51]} 29. Qb8+ {[%clk 0:01:58]}  Rf8 {[%clk 0:00:48]} 30. Qxb7 {[%clk 0:01:57]}  Qxc2 {[%clk 0:00:41]} 31. Qd5+ {[%clk 0:01:56]}  Kh8 {[%clk 0:00:40]} 32. Rxh7# {[%clk 0:01:55]} 1-0


[Site "https://www.chess.com"]

[Event "Titled Tuesday Blitz June 15 2021"]
[White "Shapiro, David"]
[Black "Tabatabaei, M. Amin"]
[WhiteFideId "24133523"]
[BlackFideId "12521213"]
[WhiteElo "2234"]
[BlackElo "2555"]
[Result "1/2-1/2"]
[Round "02"]
[TimeControl "180+1"]
[Date "2021.06.15"]
[WhiteClock "0:00:27"]
[BlackClock "0:00:45"]

1. d4 {[%clk 0:02:56]}  f5 {[%clk 0:02:59]} 2. c4 {[%clk 0:02:52]}  Nf6 {[%clk 0:02:59]} 3. Nc3 {[%clk 0:02:52]}  d6 {[%clk 0:02:59]} 4. Bg5 {[%clk 0:02:49]}  Nbd7 {[%clk 0:02:59]} 5. e3 {[%clk 0:02:45]}  g6 {[%clk 0:02:53]} 6. h4 {[%clk 0:02:42]}  h6 {[%clk 0:02:49]} 7. Bxf6 {[%clk 0:02:39]}  Nxf6 {[%clk 0:02:50]} 8. Bd3 {[%clk 0:02:38]}  c6 {[%clk 0:02:49]} 9. Nf3 {[%clk 0:02:38]}  Bg7 {[%clk 0:02:49]} 10. e4 {[%clk 0:02:37]}  fxe4 {[%clk 0:02:23]} 11. Nxe4 {[%clk 0:02:38]}  O-O {[%clk 0:02:17]} 12. Qc2 {[%clk 0:02:34]}  Nxe4 {[%clk 0:02:12]} 13. Bxe4 {[%clk 0:02:35]}  Bf5 {[%clk 0:02:12]} 14. O-O-O {[%clk 0:02:30]}  Qa5 {[%clk 0:02:03]} 15. Kb1 {[%clk 0:02:29]}  Bxe4 {[%clk 0:01:58]} 16. Qxe4 {[%clk 0:02:30]}  Qf5 {[%clk 0:01:58]} 17. Rhe1 {[%clk 0:02:30]}  Rae8 {[%clk 0:01:57]} 18. d5 {[%clk 0:02:18]}  c5 {[%clk 0:01:56]} 19. Rd3 {[%clk 0:02:07]}  g5 {[%clk 0:01:49]} 20. hxg5 {[%clk 0:02:01]}  hxg5 {[%clk 0:01:50]} 21. Qxf5 {[%clk 0:01:34]}  Rxf5 {[%clk 0:01:51]} 22. g4 {[%clk 0:01:34]}  Rf4 {[%clk 0:01:50]} 23. Nxg5 {[%clk 0:01:34]}  Rxf2 {[%clk 0:01:50]} 24. Rb3 {[%clk 0:01:34]}  b6 {[%clk 0:01:41]} 25. Ne6 {[%clk 0:01:32]}  Be5 {[%clk 0:01:41]} 26. Rh1 {[%clk 0:01:20]}  Kf7 {[%clk 0:01:28]} 27. Rh7+ {[%clk 0:01:01]}  Kf6 {[%clk 0:01:21]} 28. Rh6+ {[%clk 0:00:36]}  Kf7 {[%clk 0:01:18]} 29. Rh7+ {[%clk 0:00:27]}  Kf6 {[%clk 0:00:45]} 30. Rh6+ {[%clk 0:00:27]}  Kf7 {[%clk 0:00:45]} 31. Rh7+ {[%clk 0:00:27]} 1/2-1/2


[Site "https://www.chess.com"]

[Event "Titled Tuesday Blitz June 15 2021"]
[White "Solovchuk, Oleksiy"]
[Black "Sanal, Vahap"]
[WhiteFideId "14115220"]
[BlackFideId "6300545"]
[WhiteElo "2379"]
[BlackElo "2507"]
[Result "0-1"]
[Round "02"]
[TimeControl "180+1"]
[Date "2021.06.15"]
[WhiteClock "0:00:09"]
[BlackClock "0:00:22"]

1. e4 {[%clk 0:03:00]}  e5 {[%clk 0:02:58]} 2. Nf3 {[%clk 0:03:00]}  Nc6 {[%clk 0:02:58]} 3. Bb5 {[%clk 0:03:00]}  a6 {[%clk 0:02:59]} 4. Ba4 {[%clk 0:03:00]}  Nf6 {[%clk 0:02:59]} 5. d3 {[%clk 0:03:00]}  b5 {[%clk 0:02:58]} 6. Bb3 {[%clk 0:03:00]}  Bc5 {[%clk 0:02:59]} 7. O-O {[%clk 0:02:59]}  d6 {[%clk 0:02:59]} 8. Be3 {[%clk 0:02:59]}  O-O {[%clk 0:02:56]} 9. Nbd2 {[%clk 0:02:57]}  h6 {[%clk 0:02:54]} 10. Qe2 {[%clk 0:02:52]}  Bxe3 {[%clk 0:02:53]} 11. fxe3 {[%clk 0:02:51]}  d5 {[%clk 0:02:53]} 12. exd5 {[%clk 0:02:48]}  Nxd5 {[%clk 0:02:53]} 13. Ne4 {[%clk 0:02:48]}  Re8 {[%clk 0:02:45]} 14. c4 {[%clk 0:02:48]}  bxc4 {[%clk 0:02:40]} 15. Bxc4 {[%clk 0:02:47]}  Na5 {[%clk 0:02:26]} 16. Rad1 {[%clk 0:02:33]}  c6 {[%clk 0:02:12]} 17. a3 {[%clk 0:02:10]}  Qb6 {[%clk 0:02:09]} 18. Nd6 {[%clk 0:01:39]}  Re7 {[%clk 0:01:47]} 19. Nxc8 {[%clk 0:01:34]}  Rxc8 {[%clk 0:01:46]} 20. Bxd5 {[%clk 0:01:31]}  cxd5 {[%clk 0:01:46]} 21. b4 {[%clk 0:01:31]}  Nc6 {[%clk 0:01:41]} 22. Rc1 {[%clk 0:01:07]}  Rec7 {[%clk 0:01:33]} 23. Rc5 {[%clk 0:01:04]}  Ne7 {[%clk 0:01:25]} 24. Nxe5 {[%clk 0:00:59]}  f6 {[%clk 0:01:16]} 25. Nf3 {[%clk 0:00:43]}  Rxc5 {[%clk 0:01:15]} 26. bxc5 {[%clk 0:00:43]}  Qxc5 {[%clk 0:01:15]} 27. Nd4 {[%clk 0:00:44]}  Nc6 {[%clk 0:01:12]} 28. Nf5 {[%clk 0:00:33]}  Ne7 {[%clk 0:01:03]} 29. Nd4 {[%clk 0:00:33]}  Qxa3 {[%clk 0:00:53]} 30. Qg4 {[%clk 0:00:27]}  Rc1 {[%clk 0:00:36]} 31. Qe6+ {[%clk 0:00:20]}  Kh7 {[%clk 0:00:31]} 32. Rxc1 {[%clk 0:00:20]}  Qxc1+ {[%clk 0:00:31]} 33. Kf2 {[%clk 0:00:21]}  Qb2+ {[%clk 0:00:26]} 34. Kg3 {[%clk 0:00:21]}  Qb8+ {[%clk 0:00:26]} 35. Kh3 {[%clk 0:00:19]}  Qe5 {[%clk 0:00:26]} 36. Qxe5 {[%clk 0:00:18]}  fxe5 {[%clk 0:00:27]} 37. Nb3 {[%clk 0:00:17]}  Kg6 {[%clk 0:00:24]} 38. Kg4 {[%clk 0:00:16]}  Nc6 {[%clk 0:00:23]} 39. h4 {[%clk 0:00:16]}  a5 {[%clk 0:00:23]} 40. h5+ {[%clk 0:00:16]}  Kf6 {[%clk 0:00:24]} 41. Nc5 {[%clk 0:00:16]}  Ke7 {[%clk 0:00:21]} 42. Kf5 {[%clk 0:00:15]}  Kd6 {[%clk 0:00:22]} 43. Na4 {[%clk 0:00:15]}  Ne7+ {[%clk 0:00:22]} 44. Kg4 {[%clk 0:00:15]}  Kc6 {[%clk 0:00:23]} 45. d4 {[%clk 0:00:14]}  Kb5 {[%clk 0:00:21]} 46. Nc3+ {[%clk 0:00:12]}  Kb4 {[%clk 0:00:21]} 47. Na2+ {[%clk 0:00:10]}  Kb3 {[%clk 0:00:21]} 48. Nc1+ {[%clk 0:00:10]}  Kc2 {[%clk 0:00:21]} 49. Na2 {[%clk 0:00:09]}  exd4 {[%clk 0:00:22]} 50. exd4 {[%clk 0:00:09]}  Kb2 {[%clk 0:00:22]} 0-1


[Site "https://www.chess.com"]

[Event "Titled Tuesday Blitz June 15 2021"]
[White "Svane, Rasmus"]
[Black "Yaran, Siar"]
[WhiteFideId "4657101"]
[BlackFideId "6323006"]
[WhiteElo "2669"]
[BlackElo "1977"]
[Result "1-0"]
[Round "02"]
[TimeControl "180+1"]
[Date "2021.06.15"]
[WhiteClock "0:01:10"]
[BlackClock "0:00:09"]

1. Nf3 {[%clk 0:03:00]}  Nf6 {[%clk 0:02:59]} 2. g3 {[%clk 0:03:01]}  e6 {[%clk 0:03:00]} 3. Bg2 {[%clk 0:03:01]}  d5 {[%clk 0:03:00]} 4. O-O {[%clk 0:03:02]}  Be7 {[%clk 0:03:00]} 5. c4 {[%clk 0:03:02]}  O-O {[%clk 0:03:01]} 6. b3 {[%clk 0:03:03]}  b6 {[%clk 0:03:01]} 7. d4 {[%clk 0:03:03]}  Bb7 {[%clk 0:02:56]} 8. Nc3 {[%clk 0:03:02]}  dxc4 {[%clk 0:02:55]} 9. bxc4 {[%clk 0:03:03]}  c5 {[%clk 0:02:56]} 10. d5 {[%clk 0:03:04]}  exd5 {[%clk 0:02:27]} 11. Nh4 {[%clk 0:02:57]}  Qd7 {[%clk 0:02:27]} 12. cxd5 {[%clk 0:02:52]}  Ne8 {[%clk 0:02:02]} 13. e4 {[%clk 0:02:35]}  Bf6 {[%clk 0:01:37]} 14. Qc2 {[%clk 0:02:11]}  Nd6 {[%clk 0:01:33]} 15. f4 {[%clk 0:02:10]}  Bd4+ {[%clk 0:01:32]} 16. Kh1 {[%clk 0:02:09]}  Na6 {[%clk 0:01:21]} 17. a3 {[%clk 0:01:50]}  f5 {[%clk 0:00:54]} 18. e5 {[%clk 0:01:43]}  Nb5 {[%clk 0:00:54]} 19. Nxb5 {[%clk 0:01:21]}  Qxb5 {[%clk 0:00:20]} 20. Rb1 {[%clk 0:01:18]}  Qd7 {[%clk 0:00:19]} 21. e6 {[%clk 0:01:12]}  Qd6 {[%clk 0:00:10]} 22. Nxf5 {[%clk 0:01:12]}  Qxd5 {[%clk 0:00:09]} 23. Ne7+ {[%clk 0:01:10]} 1-0


[Site "https://www.chess.com"]

[Event "Titled Tuesday Blitz June 15 2021"]
[White "TengisChess"]
[Black "Durarbayli, Vasif"]
[BlackFideId "13402935"]
[WhiteElo "2524"]
[BlackElo "2500"]
[Result "0-1"]
[Round "02"]
[TimeControl "180+1"]
[Date "2021.06.15"]
[WhiteClock "0:01:47"]
[BlackClock "0:01:53"]

1. d4 {[%clk 0:03:00]}  Nf6 {[%clk 0:02:59]} 2. c4 {[%clk 0:03:00]}  e6 {[%clk 0:02:59]} 3. Nc3 {[%clk 0:03:00]}  c5 {[%clk 0:02:58]} 4. d5 {[%clk 0:02:57]}  exd5 {[%clk 0:02:59]} 5. cxd5 {[%clk 0:02:58]}  d6 {[%clk 0:02:59]} 6. e4 {[%clk 0:02:58]}  a6 {[%clk 0:02:58]} 7. a4 {[%clk 0:02:57]}  g6 {[%clk 0:02:58]} 8. Nf3 {[%clk 0:02:57]}  Bg4 {[%clk 0:02:54]} 9. h3 {[%clk 0:02:57]}  Bxf3 {[%clk 0:02:54]} 10. Qxf3 {[%clk 0:02:57]}  Bg7 {[%clk 0:02:55]} 11. Bf4 {[%clk 0:02:50]}  O-O {[%clk 0:02:55]} 12. Bd3 {[%clk 0:02:49]}  Qc7 {[%clk 0:02:45]} 13. O-O {[%clk 0:02:48]}  Nbd7 {[%clk 0:02:40]} 14. Rfe1 {[%clk 0:02:48]}  Rfe8 {[%clk 0:02:34]} 15. Rac1 {[%clk 0:02:32]}  Ne5 {[%clk 0:02:17]} 16. Bxe5 {[%clk 0:02:31]}  Rxe5 {[%clk 0:02:18]} 17. Qg3 {[%clk 0:02:15]}  Bh6 {[%clk 0:02:02]} 18. Rc2 {[%clk 0:02:05]}  Rae8 {[%clk 0:01:59]} 19. Rd2 {[%clk 0:01:47]}  Bxd2 {[%clk 0:01:53]} 0-1


[Site "https://www.chess.com"]

[Event "Titled Tuesday Blitz June 15 2021"]
[White "Vyatkin, Dmitry"]
[Black "Rud_Makarian"]
[WhiteFideId "4171900"]
[WhiteElo "2279"]
[BlackElo "2748"]
[Result "0-1"]
[Round "02"]
[TimeControl "180+1"]
[Date "2021.06.15"]
[WhiteClock "0:00:02"]
[BlackClock "0:00:19"]

1. d4 {[%clk 0:02:59]}  Nf6 {[%clk 0:03:00]} 2. c4 {[%clk 0:02:59]}  g6 {[%clk 0:03:00]} 3. g3 {[%clk 0:02:59]}  Bg7 {[%clk 0:03:01]} 4. Bg2 {[%clk 0:03:00]}  c5 {[%clk 0:03:01]} 5. d5 {[%clk 0:02:59]}  O-O {[%clk 0:03:01]} 6. Nc3 {[%clk 0:02:59]}  d6 {[%clk 0:03:00]} 7. Nf3 {[%clk 0:02:58]}  e6 {[%clk 0:03:01]} 8. O-O {[%clk 0:02:58]}  exd5 {[%clk 0:03:01]} 9. cxd5 {[%clk 0:02:58]}  Re8 {[%clk 0:03:02]} 10. Nd2 {[%clk 0:02:55]}  a6 {[%clk 0:03:02]} 11. a4 {[%clk 0:02:55]}  Nbd7 {[%clk 0:03:02]} 12. Nc4 {[%clk 0:02:55]}  Ne5 {[%clk 0:03:02]} 13. Na3 {[%clk 0:02:55]}  Nh5 {[%clk 0:03:02]} 14. h3 {[%clk 0:02:46]}  f5 {[%clk 0:03:02]} 15. Qc2 {[%clk 0:02:26]}  f4 {[%clk 0:02:32]} 16. Bxf4 {[%clk 0:02:20]}  Nxf4 {[%clk 0:02:29]} 17. gxf4 {[%clk 0:02:20]}  Nf7 {[%clk 0:02:24]} 18. Qd3 {[%clk 0:02:02]}  Bh6 {[%clk 0:02:16]} 19. Qg3 {[%clk 0:01:58]}  Bg7 {[%clk 0:02:08]} 20. e4 {[%clk 0:01:40]}  Rb8 {[%clk 0:02:06]} 21. Nc4 {[%clk 0:01:36]}  Bd7 {[%clk 0:01:43]} 22. a5 {[%clk 0:01:30]}  Bb5 {[%clk 0:01:43]} 23. Nxb5 {[%clk 0:01:29]}  axb5 {[%clk 0:01:43]} 24. Nb6 {[%clk 0:01:24]}  Nh6 {[%clk 0:01:35]} 25. Rad1 {[%clk 0:01:17]}  Rf8 {[%clk 0:01:32]} 26. e5 {[%clk 0:01:11]}  Nf5 {[%clk 0:01:30]} 27. Qg4 {[%clk 0:01:11]}  dxe5 {[%clk 0:01:24]} 28. d6 {[%clk 0:00:55]}  Kh8 {[%clk 0:01:12]} 29. fxe5 {[%clk 0:00:49]}  Bxe5 {[%clk 0:01:13]} 30. d7 {[%clk 0:00:47]}  Bd4 {[%clk 0:01:07]} 31. b3 {[%clk 0:00:41]}  Qf6 {[%clk 0:01:00]} 32. Rxd4 {[%clk 0:00:27]}  Nxd4 {[%clk 0:00:52]} 33. d8=Q {[%clk 0:00:14]}  Rfxd8 {[%clk 0:00:33]} 34. Nd7 {[%clk 0:00:14]}  Qf5 {[%clk 0:00:29]} 35. Qxf5 {[%clk 0:00:12]}  gxf5 {[%clk 0:00:30]} 36. Nxb8 {[%clk 0:00:12]}  Rxb8 {[%clk 0:00:31]} 37. Rb1 {[%clk 0:00:04]}  Ra8 {[%clk 0:00:31]} 38. Bxb7 {[%clk 0:00:03]}  Rxa5 {[%clk 0:00:31]} 39. b4 {[%clk 0:00:04]}  Ra7 {[%clk 0:00:27]} 40. Bg2 {[%clk 0:00:04]}  c4 {[%clk 0:00:26]} 41. Rd1 {[%clk 0:00:03]}  c3 {[%clk 0:00:16]} 42. Rxd4 {[%clk 0:00:01]}  c2 {[%clk 0:00:16]} 43. Rd8+ {[%clk 0:00:02]}  Kg7 {[%clk 0:00:17]} 44. Rc8 {[%clk 0:00:02]}  Ra1+ {[%clk 0:00:18]} 45. Kh2 {[%clk 0:00:02]}  c1=Q {[%clk 0:00:18]} 46. Rxc1 {[%clk 0:00:02]}  Rxc1 {[%clk 0:00:19]} 0-1


[Site "https://www.chess.com"]

[Event "Titled Tuesday Blitz June 15 2021"]
[White "Zubov, Alexander"]
[Black "Boyer, Mahel"]
[WhiteFideId "14109409"]
[BlackFideId "45102422"]
[WhiteElo "2740"]
[BlackElo "2325"]
[Result "1-0"]
[Round "02"]
[TimeControl "180+1"]
[Date "2021.06.15"]
[WhiteClock "0:00:10"]
[BlackClock "0:00:08"]

1. e4 {[%clk 0:03:00]}  Nc6 {[%clk 0:02:59]} 2. Nc3 {[%clk 0:02:59]}  d5 {[%clk 0:02:59]} 3. Nxd5 {[%clk 0:02:57]}  f5 {[%clk 0:02:59]} 4. Nc3 {[%clk 0:02:51]}  Nf6 {[%clk 0:02:59]} 5. exf5 {[%clk 0:02:51]}  Bxf5 {[%clk 0:03:00]} 6. Bb5 {[%clk 0:02:51]}  e5 {[%clk 0:03:00]} 7. Bxc6+ {[%clk 0:02:47]}  bxc6 {[%clk 0:03:01]} 8. Qf3 {[%clk 0:02:39]}  Qd7 {[%clk 0:03:00]} 9. d3 {[%clk 0:02:38]}  Bb4 {[%clk 0:02:56]} 10. Bd2 {[%clk 0:02:26]}  O-O {[%clk 0:02:55]} 11. Nge2 {[%clk 0:02:25]}  Rae8 {[%clk 0:01:36]} 12. Qg3 {[%clk 0:02:08]}  e4 {[%clk 0:01:31]} 13. d4 {[%clk 0:02:08]}  e3 {[%clk 0:01:02]} 14. fxe3 {[%clk 0:02:06]}  Bxc2 {[%clk 0:00:59]} 15. O-O {[%clk 0:02:04]}  Bd3 {[%clk 0:00:59]} 16. Rf2 {[%clk 0:01:25]}  Bxe2 {[%clk 0:00:47]} 17. Rxe2 {[%clk 0:01:25]}  Bxc3 {[%clk 0:00:46]} 18. Bxc3 {[%clk 0:01:25]}  Ne4 {[%clk 0:00:47]} 19. Qh3 {[%clk 0:01:10]}  Qd5 {[%clk 0:00:33]} 20. Ree1 {[%clk 0:00:58]}  Rf2 {[%clk 0:00:31]} 21. Rf1 {[%clk 0:00:52]}  Ref8 {[%clk 0:00:29]} 22. Rxf2 {[%clk 0:00:52]}  Nxf2 {[%clk 0:00:20]} 23. Qh4 {[%clk 0:00:48]}  Ne4 {[%clk 0:00:13]} 24. Rf1 {[%clk 0:00:29]}  Rxf1+ {[%clk 0:00:12]} 25. Kxf1 {[%clk 0:00:30]}  Qc4+ {[%clk 0:00:04]} 26. Kg1 {[%clk 0:00:28]}  Qd3 {[%clk 0:00:04]} 27. Qd8+ {[%clk 0:00:25]}  Kf7 {[%clk 0:00:04]} 28. Qxc7+ {[%clk 0:00:25]}  Kf8 {[%clk 0:00:03]} 29. Qf4+ {[%clk 0:00:13]}  Kg8 {[%clk 0:00:01]} 30. h3 {[%clk 0:00:12]}  Nxc3 {[%clk 0:00:01]} 31. bxc3 {[%clk 0:00:12]}  Qxc3 {[%clk 0:00:02]} 32. Qb8+ {[%clk 0:00:12]}  Kf7 {[%clk 0:00:02]} 33. Qxa7+ {[%clk 0:00:12]}  Kf8 {[%clk 0:00:03]} 34. Qc5+ {[%clk 0:00:09]}  Qxc5 {[%clk 0:00:04]} 35. dxc5 {[%clk 0:00:09]}  Ke7 {[%clk 0:00:04]} 36. a4 {[%clk 0:00:09]}  Ke6 {[%clk 0:00:05]} 37. a5 {[%clk 0:00:09]}  Kd7 {[%clk 0:00:05]} 38. e4 {[%clk 0:00:09]}  Kc7 {[%clk 0:00:06]} 39. e5 {[%clk 0:00:09]}  Kb7 {[%clk 0:00:07]} 40. e6 {[%clk 0:00:10]}  Kc7 {[%clk 0:00:08]} 41. a6 {[%clk 0:00:10]} 1-0


[Site "https://www.chess.com"]

[Event "Titled Tuesday Blitz June 15 2021"]
[White "shnitez"]
[Black "Colas, Joshua"]
[BlackFideId "2044447"]
[WhiteElo "2507"]
[BlackElo "2347"]
[Result "0-1"]
[Round "02"]
[TimeControl "180+1"]
[Date "2021.06.15"]
[WhiteClock "0:00:03"]
[BlackClock "0:00:25"]

1. e4 {[%clk 0:03:00]}  Nf6 {[%clk 0:02:56]} 2. e5 {[%clk 0:03:00]}  Nd5 {[%clk 0:02:57]} 3. d4 {[%clk 0:03:00]}  d6 {[%clk 0:02:57]} 4. Nf3 {[%clk 0:03:00]}  Bg4 {[%clk 0:02:53]} 5. Be2 {[%clk 0:02:59]}  e6 {[%clk 0:02:51]} 6. O-O {[%clk 0:02:57]}  Be7 {[%clk 0:02:50]} 7. c4 {[%clk 0:02:56]}  Nb6 {[%clk 0:02:50]} 8. exd6 {[%clk 0:02:56]}  cxd6 {[%clk 0:02:50]} 9. Nc3 {[%clk 0:02:56]}  O-O {[%clk 0:02:47]} 10. b3 {[%clk 0:02:51]}  Nc6 {[%clk 0:02:43]} 11. d5 {[%clk 0:02:31]}  exd5 {[%clk 0:02:42]} 12. Nxd5 {[%clk 0:02:29]}  Nxd5 {[%clk 0:02:29]} 13. Qxd5 {[%clk 0:02:11]}  Bf6 {[%clk 0:02:18]} 14. Rb1 {[%clk 0:02:10]}  Nb4 {[%clk 0:02:07]} 15. Qxb7 {[%clk 0:01:16]}  Nxa2 {[%clk 0:01:52]} 16. Bd2 {[%clk 0:00:59]}  Bf5 {[%clk 0:01:44]} 17. Rbe1 {[%clk 0:00:47]}  Re8 {[%clk 0:01:35]} 18. Qb5 {[%clk 0:00:31]}  Bg6 {[%clk 0:01:25]} 19. Ba5 {[%clk 0:00:25]}  Qc8 {[%clk 0:01:19]} 20. Bd1 {[%clk 0:00:20]}  Nc3 {[%clk 0:01:09]} 21. Bxc3 {[%clk 0:00:16]}  Bxc3 {[%clk 0:01:08]} 22. Rxe8+ {[%clk 0:00:16]}  Qxe8 {[%clk 0:01:09]} 23. Qxe8+ {[%clk 0:00:16]}  Rxe8 {[%clk 0:01:10]} 24. Kh1 {[%clk 0:00:06]}  Bd3 {[%clk 0:01:09]} 25. Rg1 {[%clk 0:00:06]}  f6 {[%clk 0:01:08]} 26. h3 {[%clk 0:00:06]}  g5 {[%clk 0:01:08]} 27. Kh2 {[%clk 0:00:06]}  Kf7 {[%clk 0:01:05]} 28. g4 {[%clk 0:00:05]}  a5 {[%clk 0:01:02]} 29. Kg3 {[%clk 0:00:05]}  h6 {[%clk 0:01:01]} 30. Nh2 {[%clk 0:00:05]}  Be5+ {[%clk 0:00:59]} 31. Kg2 {[%clk 0:00:05]}  Bf4 {[%clk 0:00:57]} 32. Bf3 {[%clk 0:00:04]}  Rb8 {[%clk 0:00:54]} 33. Bd5+ {[%clk 0:00:04]}  Kf8 {[%clk 0:00:53]} 34. Nf3 {[%clk 0:00:04]}  Rxb3 {[%clk 0:00:51]} 35. Nd4 {[%clk 0:00:05]}  Rb2 {[%clk 0:00:45]} 36. Ne6+ {[%clk 0:00:04]}  Ke7 {[%clk 0:00:46]} 37. Nxf4 {[%clk 0:00:04]}  gxf4 {[%clk 0:00:47]} 38. Ra1 {[%clk 0:00:05]}  Rc2 {[%clk 0:00:32]} 39. Rxa5 {[%clk 0:00:04]}  Bxc4 {[%clk 0:00:33]} 40. Ra7+ {[%clk 0:00:04]}  Ke8 {[%clk 0:00:33]} 41. Bxc4 {[%clk 0:00:04]}  Rxc4 {[%clk 0:00:33]} 42. Rh7 {[%clk 0:00:05]}  Kf8 {[%clk 0:00:31]} 43. Kf3 {[%clk 0:00:04]}  Rc3+ {[%clk 0:00:23]} 44. Kxf4 {[%clk 0:00:04]}  Rxh3 {[%clk 0:00:24]} 45. Rd7 {[%clk 0:00:04]}  Rd3 {[%clk 0:00:23]} 46. Rh7 {[%clk 0:00:04]}  Rd5 {[%clk 0:00:21]} 47. f3 {[%clk 0:00:03]}  Kg8 {[%clk 0:00:20]} 48. Rxh6 {[%clk 0:00:03]}  Kg7 {[%clk 0:00:21]} 49. Rh1 {[%clk 0:00:03]}  Rd4+ {[%clk 0:00:21]} 50. Kg3 {[%clk 0:00:03]}  Ra4 {[%clk 0:00:21]} 51. Re1 {[%clk 0:00:03]}  Kf7 {[%clk 0:00:21]} 52. Rb1 {[%clk 0:00:04]}  d5 {[%clk 0:00:21]} 53. Kf2 {[%clk 0:00:03]}  Ke6 {[%clk 0:00:22]} 54. Re1+ {[%clk 0:00:03]}  Kd6 {[%clk 0:00:22]} 55. Rb1 {[%clk 0:00:03]}  Ke5 {[%clk 0:00:22]} 56. Re1+ {[%clk 0:00:01]}  Kf4 {[%clk 0:00:22]} 57. Re8 {[%clk 0:00:02]}  Ra2+ {[%clk 0:00:22]} 58. Re2 {[%clk 0:00:01]}  Rxe2+ {[%clk 0:00:22]} 59. Kxe2 {[%clk 0:00:02]}  d4 {[%clk 0:00:22]} 60. Kd3 {[%clk 0:00:02]}  Kxf3 {[%clk 0:00:23]} 61. Kxd4 {[%clk 0:00:02]}  Kxg4 {[%clk 0:00:23]} 62. Ke3 {[%clk 0:00:03]}  Kg3 {[%clk 0:00:24]} 63. Ke4 {[%clk 0:00:02]}  Kg4 {[%clk 0:00:24]} 64. Ke3 {[%clk 0:00:03]}  f5 {[%clk 0:00:25]} 65. Kf2 {[%clk 0:00:03]}  Kf4 {[%clk 0:00:25]} 66. Ke2 {[%clk 0:00:03]}  Kg3 {[%clk 0:00:25]} 0-1


[Site "https://www.chess.com"]

[Event "Titled Tuesday Blitz June 15 2021"]
[White "Abdusattorov, Nodirbek"]
[Black "Savitski, Andrei"]
[WhiteFideId "14204118"]
[BlackFideId "13506161"]
[WhiteElo "2662"]
[BlackElo "2121"]
[Result "1-0"]
[Round "03"]
[TimeControl "180+1"]
[Date "2021.06.15"]
[WhiteClock "0:02:17"]
[BlackClock "0:00:11"]

1. e4 {[%clk 0:03:00]}  c5 {[%clk 0:01:05]} 2. Nf3 {[%clk 0:02:59]}  d6 {[%clk 0:01:06]} 3. Bb5+ {[%clk 0:02:58]}  Nc6 {[%clk 0:01:06]} 4. O-O {[%clk 0:02:58]}  Bd7 {[%clk 0:01:06]} 5. c3 {[%clk 0:02:58]}  a6 {[%clk 0:01:07]} 6. Ba4 {[%clk 0:02:57]}  Nf6 {[%clk 0:01:07]} 7. Re1 {[%clk 0:02:57]}  b5 {[%clk 0:01:07]} 8. Bc2 {[%clk 0:02:57]}  Bg4 {[%clk 0:01:08]} 9. d3 {[%clk 0:02:57]}  g6 {[%clk 0:01:05]} 10. Nbd2 {[%clk 0:02:57]}  Bg7 {[%clk 0:01:05]} 11. h3 {[%clk 0:02:58]}  Bc8 {[%clk 0:01:05]} 12. d4 {[%clk 0:02:58]}  cxd4 {[%clk 0:01:05]} 13. cxd4 {[%clk 0:02:58]}  O-O {[%clk 0:01:05]} 14. Nf1 {[%clk 0:02:58]}  Bb7 {[%clk 0:01:05]} 15. Ng3 {[%clk 0:02:58]}  Rc8 {[%clk 0:01:05]} 16. Bg5 {[%clk 0:02:54]}  h6 {[%clk 0:01:05]} 17. Be3 {[%clk 0:02:53]}  e5 {[%clk 0:01:03]} 18. Qd2 {[%clk 0:02:49]}  Kh7 {[%clk 0:01:03]} 19. Rad1 {[%clk 0:02:48]}  exd4 {[%clk 0:01:02]} 20. Nxd4 {[%clk 0:02:47]}  Ne5 {[%clk 0:00:46]} 21. b3 {[%clk 0:02:47]}  h5 {[%clk 0:00:32]} 22. f4 {[%clk 0:02:47]}  Ned7 {[%clk 0:00:25]} 23. f5 {[%clk 0:02:43]}  h4 {[%clk 0:00:24]} 24. fxg6+ {[%clk 0:02:43]}  fxg6 {[%clk 0:00:24]} 25. Ne6 {[%clk 0:02:44]}  Qe7 {[%clk 0:00:22]} 26. Nxf8+ {[%clk 0:02:44]}  Rxf8 {[%clk 0:00:16]} 27. Nf1 {[%clk 0:02:39]}  Nxe4 {[%clk 0:00:17]} 28. Bxe4 {[%clk 0:02:39]}  Qxe4 {[%clk 0:00:16]} 29. Bg5 {[%clk 0:02:29]}  Qf5 {[%clk 0:00:15]} 30. Re7 {[%clk 0:02:28]}  Ne5 {[%clk 0:00:14]} 31. Rxg7+ {[%clk 0:02:25]}  Kxg7 {[%clk 0:00:14]} 32. Bh6+ {[%clk 0:02:26]}  Kh7 {[%clk 0:00:10]} 33. Bxf8 {[%clk 0:02:27]}  Qxf8 {[%clk 0:00:06]} 34. Qxd6 {[%clk 0:02:27]}  Qg7 {[%clk 0:00:04]} 35. Ne3 {[%clk 0:02:25]}  Be4 {[%clk 0:00:04]} 36. Qe6 {[%clk 0:02:22]}  Qa7 {[%clk 0:00:04]} 37. Qxe5 {[%clk 0:02:17]}  Qxe3+ {[%clk 0:00:04]} 38. Kh2 {[%clk 0:02:18]}  Kh6 {[%clk 0:00:04]} 39. Rd8 {[%clk 0:02:16]}  Qg3+ {[%clk 0:00:03]} 40. Qxg3 {[%clk 0:02:15]}  hxg3+ {[%clk 0:00:04]} 41. Kxg3 {[%clk 0:02:16]}  Kg5 {[%clk 0:00:05]} 42. Rd6 {[%clk 0:02:15]}  a5 {[%clk 0:00:04]} 43. Ra6 {[%clk 0:02:15]}  a4 {[%clk 0:00:04]} 44. bxa4 {[%clk 0:02:15]}  bxa4 {[%clk 0:00:05]} 45. Rxa4 {[%clk 0:02:15]}  Bf5 {[%clk 0:00:05]} 46. Ra5 {[%clk 0:02:15]}  Kf6 {[%clk 0:00:05]} 47. a4 {[%clk 0:02:15]}  Bd3 {[%clk 0:00:06]} 48. Rd5 {[%clk 0:02:14]}  Be4 {[%clk 0:00:06]} 49. Rd4 {[%clk 0:02:14]}  Ke5 {[%clk 0:00:06]} 50. Rxe4+ {[%clk 0:02:12]}  Kxe4 {[%clk 0:00:07]} 51. Kg4 {[%clk 0:02:13]}  Kd5 {[%clk 0:00:08]} 52. Kg5 {[%clk 0:02:13]}  Kc5 {[%clk 0:00:09]} 53. Kxg6 {[%clk 0:02:14]}  Kb4 {[%clk 0:00:09]} 54. h4 {[%clk 0:02:15]}  Kxa4 {[%clk 0:00:10]} 55. h5 {[%clk 0:02:16]}  Kb4 {[%clk 0:00:11]} 56. h6 {[%clk 0:02:17]} 1-0


[Site "https://www.chess.com"]